Cogmind - Beta 14 @@@ ROGUE MODE // 2025.03.19 @ 23:07:31 Player: ywiktor Result: Destroyed by S-43 Plague with Heavy Machine Gun Performance ------------- Evolutions (6) 3000 Regions Visited (13) 2600 Robots Destroyed (92) 460 Value Destroyed (4595) 4595 Prototype IDs (17) 340 Alien Tech Used (0) 0 Bonus (4049) 4049 TOTAL SCORE: 15044 Bonus ------- High Alert Combat Kills 47 Follower Combat Kills 1801 Registered with UFD 300 Met Warlord at Base 500 MAIN.C Attacked Warlord 500 Warlord Defense Kills 220 Built Enhanced Grunts 300 A7 Reached Mainframe 300 Met R17 at Cetus 500 Friendly Fire -419 Cogmind --------- Core Integrity 0/1150 Matter 290/300 Energy 25/100 System Corruption 0% Temperature Cool (16) Movement Walking (120) Location -3/Proximity Caves Parts ------- > --- POWER (2) -------- (None) > --- PROPULSION (4) --- Enhanced Flexi-carbon Leg > --- UTILITY (9) ------ Makeshift Light Armor Plating > --- WEAPON (4) ------- Advanced Variable Charge Gun > --- INVENTORY (5) ---- Enhanced Flexi-carbon Leg Myomer Leg System Shield Peak State ------------ > --- POWER ------------ Backup Power III Meta Core > --- PROPULSION ------- Flexi-carbon Leg Enhanced Flexi-carbon Leg Enhanced Flexi-carbon Leg Enhanced Flexi-carbon Leg > --- UTILITY ---------- Scrap Suit Advanced Heat Sink Large Storage Unit Improved Reaction Control System Centrium Medium Armor Plating Centrium Medium Armor Plating Enhanced Scrap Shield Hacking Suite > --- WEAPON ----------- Advanced Variable Charge Gun Advanced Variable Charge Gun Advanced KE Penetrator Enhanced Gauss Cannon > --- INVENTORY -------- Light Angular Momentum Engine Enhanced Flexi-carbon Leg Enhanced Flexi-carbon Leg Myomer Leg Advanced Cooling System Matter Compressor Improved Kinecellerator Centrium Medium Armor Plating Experimental Thermal Shield System Shield Advanced Variable Charge Gun Advanced Variable Charge Gun KE Penetrator Chainsword [Rating: 133] Favorites ----------- Power Meta Core Engine Light Ion Engine Power Core Meta Core Propulsion Aluminum Leg Treads Medium Treads Leg Aluminum Leg Utility Large Storage Unit Device Scrap Suit Storage Large Storage Unit Hackware Hacking Suite Protection Scrap Shield Weapon Heavy Machine Gun Energy Gun Advanced Variable Charge Gun Energy Cannon Cooled Particle Cannon Ballistic Gun Heavy Machine Gun Ballistic Cannon Improved Light Cannon Launcher Subdweller Shrapnel Launcher Build | -11 -10 -10 -9 -9 -6 -5 -5 -5 -4 -4 -4 -4 -3 ------- Run | Yrd Mat Sub Rec Scr Fac Fac Ext Cet Fac Upp Upp War Pro Slots Evolved 12 | . . . . . 8 2 . . 2 . . . . Power 1 | . . . . . 1 . . . . . . . . Propulsion 2 | . . . . . 1 . . . 1 . . . . Utility 7 | . . . . . 4 2 . . 1 . . . . Weapon 2 | . . . . . 2 . . . . . . . . Parts Attached 93 | 6 3 10 3 13 16 3 13 14 3 2 2 2 3 Power 5 | 1 1 1 . . 1 . 1 . . . . . . Engine 2 | 1 1 . . . . . . . . . . . . Core 3 | . . 1 . . 1 . 1 . . . . . . Reactor . | . . . . . . . . . . . . . . Propulsion 18 | 2 . 1 . 2 3 . 3 5 1 . . . 1 Treads 5 | . . . . 2 3 . . . . . . . . Leg 13 | 2 . 1 . . . . 3 5 1 . . . 1 Wheel . | . . . . . . . . . . . . . . Hover . | . . . . . . . . . . . . . . Flight . | . . . . . . . . . . . . . . Utility 42 | 1 2 3 1 7 7 3 5 5 2 1 2 2 1 Device 17 | . . . . 3 6 . 2 3 2 . . 1 . Storage 3 | 1 1 . 1 . . . . . . . . . . Processor . | . . . . . . . . . . . . . . Hackware 3 | . . . . . . 2 1 . . . . . . Protection 19 | . 1 3 . 4 1 1 2 2 . 1 2 1 1 Artifact . | . . . . . . . . . . . . . . Weapon 28 | 2 . 5 2 4 5 . 4 4 . 1 . . 1 Energy Gun 8 | . . . . . 2 . 2 2 . 1 . . 1 Energy Cannon 1 | . . . . . 1 . . . . . . . . Ballistic Gun 11 | 2 . 2 . 2 2 . 2 1 . . . . . Ballistic Cannon 3 | . . . 2 . . . . 1 . . . . . Launcher 5 | . . 3 . 2 . . . . . . . . . Special Weapon . | . . . . . . . . . . . . . . Impact Weapon . | . . . . . . . . . . . . . . Slashing Weapon . | . . . . . . . . . . . . . . Piercing Weapon . | . . . . . . . . . . . . . . Special Melee Weapon . | . . . . . . . . . . . . . . Unidentified Prototypes 9 | . . 1 . . 2 . . 5 . 1 . . . Parts Lost 31 | . 1 2 1 . 5 3 2 4 . 1 1 11 . Power 4 | . 1 . . . . . . . . . 1 2 . Propulsion 8 | . . . 1 . 1 1 2 1 . . . 2 . Utility 16 | . . 1 . . 3 2 . 2 . 1 . 7 . Weapon 3 | . . 1 . . 1 . . 1 . . . . . Highest Loss Streak 10 | . 1 1 1 . 4 2 2 2 . 1 1 10 . To Critical Strikes 1 | . . . . . . . . . . . . 1 . Average Slot Usage (%) 76 | . 99 84 65 58 85 79 93 93 94 87 85 85 9 Engine 1 | . 14 9 . . . . . . . . . 2 . Core 8 | . . 3 10 11 6 10 10 11 10 10 8 4 . Treads 6 | . . . . 15 21 18 8 . . . . . . Leg 12 | . 28 25 14 3 . . 9 15 20 20 20 19 5 Device 6 | . . . . 2 16 10 12 15 21 20 20 18 . Storage 7 | . 14 4 7 11 5 5 5 5 5 5 5 4 . Hackware 2 | . . . . . . 6 10 11 10 7 5 4 . Protection 10 | . 13 12 10 10 11 6 13 11 8 5 7 9 4 Energy Gun 3 | . . . . . 6 15 12 11 10 10 10 9 . Ballistic Gun 8 | . 28 15 3 4 14 5 8 5 5 5 5 4 . Ballistic Cannon 3 | . . . 12 . . . . 4 5 5 5 4 . Launcher 3 | . . 12 5 . . . . . . . . . . Peak Build Rating 133 | 6 8 28 28 48 83 81 90 119 130 130 129 133 20 Average Rating 51 | 4 7 15 24 29 76 77 85 98 128 124 123 124 12 On Entrance 60 | . 6 8 27 20 48 77 76 90 119 130 121 126 3 Naked Turns 13 | . . . . . . . . . . . . 7 6 Heaviest Build 88 | 11 29 43 63 60 69 64 78 81 78 78 85 88 4 Greatest Support 104 | 20 20 20 20 58 94 94 64 84 104 104 104 104 28 Greatest Overweight (x) 17 | 3 1 2 17 4 1 . 2 2 . . . 1 . Average Overweight (x) . | . . 1 3 . . . 1 1 . . . . . Largest Inventory Capacity 15 | 8 15 15 15 15 15 15 15 15 15 15 15 15 5 Average Capacity 13 | 7 13 8 12 15 15 15 15 15 15 15 15 14 5 Most Carried 15 | 2 11 12 8 15 15 15 15 15 15 15 15 15 5 Average Carried 10 | 1 9 6 5 10 13 14 14 14 14 14 14 14 3 Final Capacity 15 | 8 15 5 15 15 15 15 15 15 15 15 15 5 5 Final Carried 15 | 2 10 5 7 15 14 15 15 15 15 15 15 5 3 Class Distribution -------------------- 51% | Mutant 18% | Scavenger-Tank 9% | Scrapper 4% | Subdweller-Tank 4% | Tank 4% | Scavenger-Skirmisher 3% | Subdweller-Bomber Dominant Class ---------------- Mutant | -10/Materials Mutant | -10/Subcaves Mutant | -9/Recycling Mutant | -9/Scraptown Scrapper | -6/Factory Tank | -5/Factory Scavenger-Tank | -5/Extension Scavenger-Tank | -5/Cetus Scavenger-Tank | -4/Factory Scavenger-Skirmisher | -4/Upper Caves Scavenger-Skirmisher | -4/Upper Caves Scavenger-Tank | -4/Warlord Mutant | -3/Proximity Caves Resources | -11 -10 -10 -9 -9 -6 -5 -5 -5 -4 -4 -4 -4 -3 ----------- Run | Yrd Mat Sub Rec Scr Fac Fac Ext Cet Fac Upp Upp War Pro Matter Collected 3564 | 174 199 677 374 70 780 . 435 252 151 125 215 92 20 Remotely . | . . . . . . . . . . . . . . Salvage Created 3596 | . 203 558 135 . 962 171 596 130 190 244 392 15 . Parts 152 | . 10 42 7 . 41 5 19 7 7 3 11 . . Haulers Intercepted . | . . . . . . . . . . . . . . Recyclers Shooed . | . . . . . . . . . . . . . . Parts Field Recycled . | . . . . . . . . . . . . . . Retrieved Matter . | . . . . . . . . . . . . . . Parts Self-Destructed 37 | . . 14 . . . . . . . 13 10 . . Prevented . | . . . . . . . . . . . . . . Kills | -11 -10 -10 -9 -9 -6 -5 -5 -5 -4 -4 -4 -4 -3 ------- Run | Yrd Mat Sub Rec Scr Fac Fac Ext Cet Fac Upp Upp War Pro Combat Hostiles Destroyed 85 | . 5 29 2 . 16 5 9 2 4 5 7 1 . Guns 46 | . 5 5 1 . 16 1 8 1 2 2 4 1 . Cannons 10 | . . . 1 . . . . 1 2 3 3 . . AOE 28 | . . 24 . . . 4 . . . . . . . Classes Destroyed 13 | . 1 3 2 . 4 2 . . . . . 1 . Worker 2 | . . . . . 1 1 . . . . . . . Tunneler 1 | . . . . . 1 . . . . . . . . Recycler 1 | . . . 1 . . . . . . . . . . Operator 2 | . . . . . . 1 . . 1 . . . . Turret 2 | . . 2 . . . . . . . . . . . Swarmer 9 | . . 4 . . . . 2 . 1 2 . . . Grunt 27 | . 5 3 . . 11 3 2 . 1 . 2 . . Brawler 3 | . . . . . 1 1 . . . . 1 . . Sentry 8 | . . . 2 . . . 4 . 1 1 . . . Hunter 6 | . . . . . . 1 1 . . 2 2 . . Programmer 7 | . . . . . 4 . . . 1 . 2 . . Cetus Guard 2 | . . . . . . . . 2 . . . . . Striker 1 | . . . . . . . . . . . . 1 . Subdweller 22 | . . 22 . . . . . . . . . . . Thug 1 | . . . . . . . 1 . . . . . . Best Kill Streak 9 | . 3 9 1 . 4 6 2 1 2 3 2 1 . Combat Bots Only 7 | . 3 7 1 . 4 5 2 1 2 3 2 1 . Max Kills in Single Turn 3 | . 1 3 1 . 2 3 1 1 1 1 1 1 . Gunslinging 1 | . . 1 . . . . . . . . . . . Exploded 3 | . . 3 . . . 3 . . . . . . . Melee . | . . . . . . . . . . . . . . Uniques/NPCs Destroyed . | . . . . . . . . . . . . . . Combat | -11 -10 -10 -9 -9 -6 -5 -5 -5 -4 -4 -4 -4 -3 -------- Run | Yrd Mat Sub Rec Scr Fac Fac Ext Cet Fac Upp Upp War Pro Hostile Shots Fired 758 | . 22 72 24 . 136 51 34 30 22 27 46 279 15 Missed 299 | . 4 30 5 . 54 17 7 5 9 15 17 131 5 Damage Taken 9238 | . 238 859 278 . 1503 538 582 644 249 231 571 3318 227 Core 1633 | . 35 128 45 . 55 86 36 94 12 . . 982 160 Absorbed by Shields 188 | . . . . . . . 188 . . . . . . Redirected to Shielding 101 | . . . . . 80 21 . . . . . . . Ignored by Resistances 161 | . . . . . . . 49 78 34 . . . . Regen/Repaired (Parts) 307 | . . . . . 53 51 125 34 6 . . 38 . Core Remaining (%) 71 | 100 . . . 16 93 . . 78 . . . . . Volleys Fired 241 | . 20 52 12 . 45 9 41 10 11 10 20 7 4 Largest 4 | . 2 2 2 . 4 2 4 4 4 4 4 4 1 Hottest 253 | . 40 80 78 . 195 144 243 242 253 252 252 252 80 Shots Fired 614 | . 40 66 21 . 136 10 132 35 42 38 66 24 4 Gun 494 | . 40 12 10 . 136 10 132 28 31 28 46 17 4 Cannon 66 | . . . 11 . . . . 7 11 10 20 7 . Launcher 54 | . . 54 . . . . . . . . . . . Special . | . . . . . . . . . . . . . . Kinetic 350 | . 40 36 21 . 76 8 58 20 22 20 35 14 . Thermal 213 | . . . . . 39 2 74 15 20 18 31 10 4 Explosive 30 | . . 30 . . . . . . . . . . . Electromagnetic 21 | . . . . . 21 . . . . . . . . Robot Hit Streak 14 | . 9 10 7 . 14 4 10 11 6 5 7 3 1 Robot Miss Streak 5 | . 1 3 2 . 2 3 5 4 4 5 5 3 1 Penetration Max 1 | . . . . . . . 1 . 1 . 1 1 . Secondary Targets 6 | . . 1 . . 4 . 1 . . . . . . Max Gunslinging Chain 1 | . . 1 . . 1 . 1 . . . . . . Shots Hit Robots 365 | . 30 36 11 . 99 4 80 22 22 17 33 9 2 Core Hits 220 | . 10 62 4 . 52 9 35 11 9 9 12 6 1 Critical Kills 4 | . . . . . 1 . 2 1 . . . . . Critical Parts Destroyed 6 | . . . . . 1 . . . 2 1 . 2 . Critical Strikes 24 | . . . . . 5 . 5 1 4 4 2 3 . Burn 6 | . . . . . 3 . 3 . . . . . . Destroy 10 | . . . . . 2 . 2 1 2 1 . 2 . Blast 8 | . . . . . . . . . 2 3 2 1 . Melee Attacks . | . . . . . . . . . . . . . . Impact . | . . . . . . . . . . . . . . Slashing . | . . . . . . . . . . . . . . Piercing . | . . . . . . . . . . . . . . Sneak Attacks . | . . . . . . . . . . . . . . Combat Hostiles . | . . . . . . . . . . . . . . Follow-up Attacks . | . . . . . . . . . . . . . . Damage Inflicted 12618 | . 309 3211 207 . 2439 1077 1938 650 776 435 1082 455 39 Guns 7027 | . 301 96 121 . 2305 127 1936 480 489 258 614 261 39 Cannons 1380 | . . . 84 . . . . 170 287 177 468 194 . Explosions 4179 | . . 3115 . . 114 950 . . . . . . . Melee . | . . . . . . . . . . . . . . Ramming 32 | . 8 . 2 . 20 . 2 . . . . . . Kinetic 7015 | . 301 1979 205 . 1302 127 911 393 490 285 670 352 . Thermal 3983 | . . . . . 761 950 1025 257 286 150 412 103 39 Explosive 1232 | . . 1232 . . . . . . . . . . . Electromagnetic 356 | . . . . . 356 . . . . . . . . Impact . | . . . . . . . . . . . . . . Slashing . | . . . . . . . . . . . . . . Piercing . | . . . . . . . . . . . . . . Highest Corruption 5 | . 2 2 2 . 1 . 1 1 . . 5 5 . Average Corruption 1 | . 1 2 2 . 1 . 1 1 . . 4 5 . Corruption Purged . | . . . . . . . . . . . . . . Corruption Blocked . | . . . . . . . . . . . . . . Effects 123 | . 5 36 57 . 4 . 10 4 . . 4 3 . Message Errors 31 | . 1 9 15 . 1 . 2 . . . 1 2 . Matter Fused 14 | . 1 5 5 . . . 1 2 . . . . . Heat Flow Errors 20 | . . 9 9 . 1 . 1 . . . . . . Energy Discharges 23 | . 1 8 9 . . . 2 1 . . 2 . . Parts Rejected 2 | . . . 1 . . . 1 . . . . . . Parts Fused 2 | . 1 . 1 . . . . . . . . . . Data Loss (minor) 6 | . 1 . 2 . 1 . 1 . . . . 1 . Data Loss (major) 8 | . . 1 7 . . . . . . . . . . Misfires 11 | . . 1 6 . . . 2 1 . . 1 . . Alerts 4 | . . 1 2 . 1 . . . . . . . . Weapon Failures 2 | . . 2 . . . . . . . . . . . Overload Shots . | . . . . . . . . . . . . . . Overflow Damage 110 | . . 19 . . . 41 . . 13 . 37 . . Projectiles 50 | . . . . . . . . . 13 . 37 . . Explosions 60 | . . 19 . . . 41 . . . . . . . Melee . | . . . . . . . . . . . . . . Knockbacks 8 | . . . . . . . . . 1 2 5 . . Impact . | . . . . . . . . . . . . . . Kinetic 8 | . . . . . . . . . 1 2 5 . . Secondary . | . . . . . . . . . . . . . . Self-Inflicted Damage 148 | . . 113 . . 35 . . . . . . . . Shots 9 | . . 6 . . 3 . . . . . . . . Rammed 1 | . . . . . 1 . . . . . . . . Targets Rammed 4 | . 1 . 1 . 1 . 1 . . . . . . Kicked 3 | . 1 . 1 . . . 1 . . . . . . Crushed . | . . . . . . . . . . . . . . Highest Temperature 493 | . 31 251 257 . 493 . 475 389 324 367 336 198 16 Average Temperature 120 | . 10 89 82 . 143 . 147 158 104 173 146 67 9 Received Heat Transfer 1544 | . 135 72 108 . 576 72 109 18 21 9 21 403 . Effects 11 | . . . . . 2 . 3 3 . . 3 . . Shutdowns 4 | . . . . . 1 . 1 2 . . . . . Interference 5 | . . . . . . . 2 . . . 3 . . Short Circuit 2 | . . . . . 1 . . 1 . . . . . Siege Activations . | . . . . . . . . . . . . . . Robots Corrupted . | . . . . . . . . . . . . . . Combat Hostiles . | . . . . . . . . . . . . . . Parts Fried . | . . . . . . . . . . . . . . Impact Corruptions . | . . . . . . . . . . . . . . Robots Melted 1 | . . . . . . . 1 . . . . . . Combat Hostiles 1 | . . . . . . . 1 . . . . . . Parts Melted 11 | . . . . . 4 . 7 . . . . . . Heat Transferred 6448 | . . . . . 1894 600 2252 444 370 185 481 148 74 Parts Sabotaged . | . . . . . . . . . . . . . . Parts Stolen . | . . . . . . . . . . . . . . Parts Stripped . | . . . . . . . . . . . . . . Power Chain Reactions 2 | . . . . . 2 . . . . . . . . Alert | -11 -10 -10 -9 -9 -6 -5 -5 -5 -4 -4 -4 -4 -3 ------- Run | Yrd Mat Sub Rec Scr Fac Fac Ext Cet Fac Upp Upp War Pro Peak Influence 542 | . 80 . 69 . 351 542 450 150 508 . . . . Initial 166 | . . . 69 . . 166 100 132 80 . . . . Average 94 | . 49 . 11 . 106 254 242 103 134 . . . . Maximum Alert Level 2 | . . . . . 1 2 2 . 2 . . . . Low Security (%) 82 | 100 100 . 100 . 75 66 40 100 78 . . . . Level 1 13 | . . . . . 24 14 47 . 16 . . . . Level 2 3 | . . . . . . 18 12 . 4 . . . . Level 3 . | . . . . . . . . . . . . . . Level 4 . | . . . . . . . . . . . . . . Level 5 . | . . . . . . . . . . . . . . High Security . | . . . . . . . . . . . . . . Max Security . | . . . . . . . . . . . . . . Squads Dispatched 12 | . 1 . . . 5 . 4 . 2 . . . . Investigation 1 | . 1 . . . . . . . . . . . . Extermination 3 | . . . . . 2 . . . 1 . . . . Reinforcement 7 | . . . . . 3 . 4 . . . . . . Assault . | . . . . . . . . . . . . . . Garrison 1 | . . . . . . . . . 1 . . . . Intercept . | . . . . . . . . . . . . . . Searches Triggered . | . . . . . . . . . . . . . . Construction Impeded 4 | . . . . . 1 . 3 . . . . . . Haulers Reinforced . | . . . . . . . . . . . . . . Active Scanning Responses . | . . . . . . . . . . . . . . Cargo Convoy Interrupts . | . . . . . . . . . . . . . . Stealth | -11 -10 -10 -9 -9 -6 -5 -5 -5 -4 -4 -4 -4 -3 --------- Run | Yrd Mat Sub Rec Scr Fac Fac Ext Cet Fac Upp Upp War Pro Distress Signals 14 | . 1 . . . 4 1 3 2 1 . . 2 . Communications Jammed . | . . . . . . . . . . . . . . Distress Signals . | . . . . . . . . . . . . . . Times Spotted 217 | . 12 38 2 . 24 13 35 10 12 13 9 44 5 Peak Tracking Total 23 | . 3 6 1 . 5 5 6 5 6 9 4 23 5 Tactical Retreats 15 | . . 2 . . 5 1 2 . . 1 1 2 1 Traps | -11 -10 -10 -9 -9 -6 -5 -5 -5 -4 -4 -4 -4 -3 ------- Run | Yrd Mat Sub Rec Scr Fac Fac Ext Cet Fac Upp Upp War Pro Traps Triggered 6 | . 3 . . . 1 . 2 . . . . . . Indirectly . | . . . . . . . . . . . . . . Trap Hack Attempts . | . . . . . . . . . . . . . . Triggered . | . . . . . . . . . . . . . . Disarmed 3 | . . . . . . . 3 . . . . . . Reprogrammed 4 | . . . . . . 3 1 . . . . . . Reused 1 | . . . . . . 1 . . . . . . . Traps Extracted . | . . . . . . . . . . . . . . Installed . | . . . . . . . . . . . . . . Triggered 13 | . . 1 . . 1 1 . . . 1 . 9 . Machines | -11 -10 -10 -9 -9 -6 -5 -5 -5 -4 -4 -4 -4 -3 ---------- Run | Yrd Mat Sub Rec Scr Fac Fac Ext Cet Fac Upp Upp War Pro Machines Disabled 34 | . . 4 2 . 14 10 1 . 2 1 . . . Max in Single Turn 6 | . . 3 1 . 5 6 . . 1 . . . . Garrison Access 3 | . . . . . 2 . . . 1 . . . . Machines Repaired . | . . . . . . . . . . . . . . Machines Dismantled . | . . . . . . . . . . . . . . Machines Sabotaged . | . . . . . . . . . . . . . . Overloaded Fab Kills . | . . . . . . . . . . . . . . Hacking | -11 -10 -10 -9 -9 -6 -5 -5 -5 -4 -4 -4 -4 -3 --------- Run | Yrd Mat Sub Rec Scr Fac Fac Ext Cet Fac Upp Upp War Pro Machines Accessed 53 | . 3 . 12 5 7 1 14 3 6 . . 2 . Terminals 35 | . 3 . 6 . 3 1 14 3 5 . . . . Fabricators . | . . . . . . . . . . . . . . Repair Stations . | . . . . . . . . . . . . . . Recycling Units 4 | . . . 4 . . . . . . . . . . Scanalyzers 1 | . . . . . 1 . . . . . . . . Garrison Access 4 | . . . . . 3 . . . 1 . . . . Total Hacks 158 | . 13 . 43 25 15 6 26 8 19 . . 3 . Successful 110 | . 3 . 32 25 9 4 18 3 13 . . 3 . Failed 48 | . 10 . 11 . 6 2 8 5 6 . . . . Catastrophic 6 | . . . 3 . 2 . 1 . . . . . . Database Lockouts . | . . . . . . . . . . . . . . Manual 58 | . 10 . 12 . 3 6 12 1 14 . . . . Terminals 87 | . 13 . 12 . 5 6 26 8 17 . . . . Fabricators . | . . . . . . . . . . . . . . Repair Stations . | . . . . . . . . . . . . . . Recycling Units 7 | . . . 7 . . . . . . . . . . Scanalyzers 6 | . . . . . 6 . . . . . . . . Garrison Access 6 | . . . . . 4 . . . 2 . . . . Terminal Hacks 80 | . . . 25 25 1 3 16 3 4 . . 3 . Record 52 | . . . 24 24 . . . 2 . . . 2 . Prototype ID Bank 1 | . . . . . . . 1 . . . . . . Open Door 8 | . . . . . . . 6 1 . . . 1 . Branch Access Points 3 | . . . 1 . 1 . . . 1 . . . . Alert Level 4 | . . . . . . 1 2 . 1 . . . . Unreport Threat 3 | . . . . . . 1 2 . . . . . . Locate Traps 1 | . . . . . . . . . 1 . . . . Disarm Traps 1 | . . . . . . . 1 . . . . . . Reprogram Traps 3 | . . . . . . 1 1 . 1 . . . . Dispatch Records 1 | . . . . . . . 1 . . . . . . Security Status 1 | . . . . . . . 1 . . . . . . Recall Reinforcements 1 | . . . . . . . 1 . . . . . . Derelict Proto ID Bank 1 | . . . . 1 . . . . . . . . . Fabricator Hacks . | . . . . . . . . . . . . . . Repair Station Hacks . | . . . . . . . . . . . . . . Recycling Unit Hacks 3 | . . . 3 . . . . . . . . . . Process 1 | . . . 1 . . . . . . . . . . Retrieve Matter 1 | . . . 1 . . . . . . . . . . Retrieve Components 1 | . . . 1 . . . . . . . . . . Scanalyzer 5 | . . . . . 5 . . . . . . . . Insert Component 2 | . . . . . 2 . . . . . . . . Analyze 3 | . . . . . 3 . . . . . . . . Garrison Access Hacks 3 | . . . . . 2 . . . 1 . . . . Seal Access 3 | . . . . . 2 . . . 1 . . . . Unauthorized Hacks 19 | . 3 . 4 . 1 1 2 . 8 . . . . Terminals 19 | . 3 . 4 . 1 1 2 . 8 . . . . Track 1 | . . . . . . . . . 1 . . . . Assimilate 3 | . . . . . . . . . 3 . . . . Botnet 13 | . 2 . 4 . 1 1 2 . 3 . . . . Operators 2 | . 1 . . . . . . . 1 . . . . Fabricators . | . . . . . . . . . . . . . . Repair Stations . | . . . . . . . . . . . . . . Recycling Units . | . . . . . . . . . . . . . . Scanalyzers . | . . . . . . . . . . . . . . Garrison Access . | . . . . . . . . . . . . . . Data Cores Recovered 1 | . . . . . . 1 . . . . . . . Used 1 | . . . . . . 1 . . . . . . . Hacking Detections 30 | . 3 . 6 . 5 1 7 2 6 . . . . Full Trace Events . | . . . . . . . . . . . . . . Feedback Events . | . . . . . . . . . . . . . . Feedback Blocked . | . . . . . . . . . . . . . . Robot Schematics Acquired . | . . . . . . . . . . . . . . Robots Built . | . . . . . . . . . . . . . . Authchips . | . . . . . . . . . . . . . . Time . | . . . . . . . . . . . . . . Total Robot Build Rating . | . . . . . . . . . . . . . . Part Schematics Acquired 2 | . . . . . 2 . . . . . . . . Parts Built . | . . . . . . . . . . . . . . Authchips . | . . . . . . . . . . . . . . Time . | . . . . . . . . . . . . . . Total Part Build Rating . | . . . . . . . . . . . . . . Parts Repaired . | . . . . . . . . . . . . . . Time . | . . . . . . . . . . . . . . Parts Recycled . | . . . . . . . . . . . . . . Recycled Matter 47 | . . . 47 . . . . . . . . . . Retrieved Matter 47 | . . . 47 . . . . . . . . . . Retrieved Components . | . . . . . . . . . . . . . . Parts Scanalyzed 2 | . . . . . 2 . . . . . . . . Part Schematics Acquired 2 | . . . . . 2 . . . . . . . . Parts Damaged . | . . . . . . . . . . . . . . Bothacking | -11 -10 -10 -9 -9 -6 -5 -5 -5 -4 -4 -4 -4 -3 ------------ Run | Yrd Mat Sub Rec Scr Fac Fac Ext Cet Fac Upp Upp War Pro Used RIF Installer . | . . . . . . . . . . . . . . Robots Hacked . | . . . . . . . . . . . . . . Non-combat . | . . . . . . . . . . . . . . Combat . | . . . . . . . . . . . . . . Robot Hacks Applied . | . . . . . . . . . . . . . . Relay Couplers Released 4 | . . . . . 4 . . . . . . . . Programmers 4 | . . . . . 4 . . . . . . . . Fabnet Peak Effective % . | . . . . . . . . . . . . . . Robots Rewired 17 | . . . . . . . 17 . . . . . . Allies Hacked . | . . . . . . . . . . . . . . Hacks Repelled . | . . . . . . . . . . . . . . Allies | -11 -10 -10 -9 -9 -6 -5 -5 -5 -4 -4 -4 -4 -3 -------- Run | Yrd Mat Sub Rec Scr Fac Fac Ext Cet Fac Upp Upp War Pro Total Allies 33 | . . . . . 3 . 25 5 . . . . . Largest Group 12 | . . . . . 3 . 12 12 6 5 1 . . Highest-Rated Group 752 | . . . . . 93 . 502 752 493 347 96 . . Highest-Rated Ally 159 | . . . . . 31 . 159 146 146 96 96 . . Total Orders . | . . . . . . . . . . . . . . Ally Attacks 308 | . . . . . 23 . 144 65 25 38 13 . . Total Damage 8459 | . . . . . 397 . 3402 1432 1012 1808 408 . . Kills 54 | . . . . . 2 . 24 8 7 12 1 . . Allies Corrupted . | . . . . . . . . . . . . . . Allies Melted . | . . . . . . . . . . . . . . Intel | -11 -10 -10 -9 -9 -6 -5 -5 -5 -4 -4 -4 -4 -3 ------- Run | Yrd Mat Sub Rec Scr Fac Fac Ext Cet Fac Upp Upp War Pro Robot Analysis Total . | . . . . . . . . . . . . . . Derelict Logs Recovered 8 | . . 1 . 2 . . . . . 2 3 . . Drone Launches . | . . . . . . . . . . . . . . Drone Recoveries . | . . . . . . . . . . . . . . Exploration | -11 -10 -10 -9 -9 -6 -5 -5 -5 -4 -4 -4 -4 -3 ------------- Run | Yrd Mat Sub Rec Scr Fac Fac Ext Cet Fac Upp Upp War Pro Turns Passed 19218 | 63 700 2858 4060 4232 1807 480 1622 677 791 525 630 717 56 Spaces Moved 9265 | 46 297 1354 1140 2147 998 302 684 277 596 340 463 578 43 Core 46 | 20 . . 1 . . . . . . . . 14 11 Treads 3497 | . . . . 1850 998 302 347 . . . . . . Legs 5722 | 26 297 1354 1139 297 . . 337 277 596 340 463 564 32 Wheels . | . . . . . . . . . . . . . . Hover . | . . . . . . . . . . . . . . Flight . | . . . . . . . . . . . . . . Fastest Speed 50 | 50 120 120 260 160 146 146 180 120 120 120 120 50 50 Average Speed 190 | 114 167 196 351 193 153 148 194 219 120 120 120 118 102 Slowest Speed 900 | 200 190 260 900 400 240 150 260 260 120 120 120 190 120 Overloaded Moves . | . . . . . . . . . . . . . . Propulsion Burnouts . | . . . . . . . . . . . . . . Robots Hopped . | . . . . . . . . . . . . . . Cave-ins Triggered . | . . . . . . . . . . . . . . Exploration Rate (%) 50 | 4 50 71 99 96 32 10 64 83 14 53 51 70 15 Regions Visited 13 Branch Regions 9 Pre-discovered Areas 2 | . . . . . . . . . . 1 1 . . Known Exits Taken 2 | . . . . . . . . . 1 1 . . . Unknown Exits Taken 11 | 1 1 1 1 1 1 1 1 1 . . 1 1 . Scrap Searched 22 | . . 15 . 4 . . . . . 1 1 . 1 Spaces Dug 36 | . . 15 . . . 3 18 . . . . . . Terrain Destroyed 530 | . . 367 . . 33 32 31 7 10 20 27 2 1 Melee . | . . . . . . . . . . . . . . Projectile 129 | . . . . . 26 5 31 7 10 20 27 2 1 AOE 401 | . . 367 . . 7 27 . . . . . . . Terrain Rammed . | . . . . . . . . . . . . . . Walls Destroyed . | . . . . . . . . . . . . . . Machines Disabled . | . . . . . . . . . . . . . . Actions | -11 -10 -10 -9 -9 -6 -5 -5 -5 -4 -4 -4 -4 -3 --------- Run | Yrd Mat Sub Rec Scr Fac Fac Ext Cet Fac Upp Upp War Pro Total 10412 | 53 464 1487 1187 2232 1191 327 915 337 648 433 495 593 50 Wait 549 | . 134 49 23 45 104 12 51 8 32 78 8 5 . Move 9252 | 45 296 1353 1139 2146 997 301 683 276 595 339 462 577 43 Hop . | . . . . . . . . . . . . . . Pick Up 88 | 2 9 7 2 16 17 2 16 10 4 1 2 . . Fast Attach 31 | 6 1 5 1 5 2 2 . 6 1 1 . . 1 Attach 43 | . 1 2 2 8 11 1 6 4 2 1 1 2 2 Detach 17 | . . 2 4 6 1 . 1 3 . . . . . Swap 19 | . 1 3 . . 3 . 7 4 . . 1 . . Drop 63 | . 1 7 2 6 10 . 12 16 3 3 1 2 . Fire 241 | . 20 52 12 . 45 9 41 10 11 10 20 7 4 Melee . | . . . . . . . . . . . . . . Ram . | . . . . . . . . . . . . . . Kick 3 | . 1 . 1 . . . 1 . . . . . . Crush 1 | . . . . . 1 . . . . . . . . Escape Stasis 10 | . . . . . . . 10 . . . . . . Rewire 87 | . . . . . . . 87 . . . . . . Trap . | . . . . . . . . . . . . . . Miscellaneous 8 | . . 7 1 . . . . . . . . . . Route ------- -11/Scrapyard -10/Materials (discovered 2 exits: [*Min] / [*Sub]) -10/Subcaves (discovered 3 exits: [*Mat x2] / *Rec) -9/Recycling (discovered 2 exits: [*Fac] / *Scr) -9/Scraptown (discovered 2 exits: *Fac x2) -6/Factory (discovered 3 exits: *Fac / Low x2) -5/Factory (discovered 2 exits: *Fac / *Ext) -5/Extension (discovered 2 exits: *Fac / *Cet) -5/Cetus (discovered 2 exits: *Fac / [*Arc]) -4/Factory (discovered 3 exits: [*Res] / *Upp x2) -4/Upper Caves -4/Upper Caves -4/Warlord -3/Proximity Caves History --------- Turn | Location | Event 17 | -11/Scrapyard | Discovered new exit (range 15) 64 | -11/Scrapyard | Entered Materials 311 | -10/Materials | Build established: Mutant 392 | -10/Materials | Discovered new exit (range 9) 748 | -10/Materials | Discovered new exit (range 3) 764 | -10/Materials | Entered Subcaves 827 | -10/Subcaves | Learned Materials emergency access door positions 992 | -10/Subcaves | Shifting Twisted Machinery released Sub. Laser 995 | -10/Subcaves | Shifting Twisted Machinery released Sub. Laser 1008 | -10/Subcaves | Shifting Twisted Machinery released Barrage Gun 1016 | -10/Subcaves | Shifting Twisted Machinery released Battle Cannon 1540 | -10/Subcaves | Core integrity fell below 50% 1544 | -10/Subcaves | Ambushed by Subdweller buried in earth 2165 | -10/Subcaves | Discovered new exit (range 14) 2192 | -10/Subcaves | Shifting Twisted Machinery released Mak. Spear 2294 | -10/Subcaves | Ambushed by angry Subdweller bent on revenge 2608 | -10/Subcaves | A Subdweller sparked back to life 2608 | -10/Subcaves | A Subdweller sparked back to life 2608 | -10/Subcaves | A Subdweller sparked back to life 2634 | -10/Subcaves | Found Prototype Power Core 2634 | -10/Subcaves | Identified Meta Core 2635 | -10/Subcaves | Attached Meta Core, gained temporary slots: Propulsion, Utility, Weapon 2843 | -10/Subcaves | Disturbed a concealed Subdweller 2958 | -10/Subcaves | Build established: Tank 3162 | -10/Subcaves | A swath of the cavern ceiling suddenly collapsed 3350 | -10/Subcaves | Discovered new exit (range 8) 3547 | -10/Subcaves | Build established: Subdweller-Tank 3572 | -10/Subcaves | Discovered new exit (range 12) 3572 | -10/Subcaves | Ambushed by Subdweller buried in earth 3578 | -10/Subcaves | Ambushed by Subdweller buried in earth 3592 | -10/Subcaves | Ambushed by Subdweller buried in earth 3616 | -10/Subcaves | Destroyed 7 combat bots 3622 | -10/Subcaves | Entered Recycling 3623 | -9/Recycling | Met a Zionite searching for Scraptown 4459 | -9/Recycling | Build established: Subdweller-Bomber 4501 | -9/Recycling | Discovered new exit (range 13) 5104 | -9/Recycling | Build established: Mutant 5335 | -9/Recycling | Core integrity fell below 20% 7441 | -9/Recycling | Scanned before Scraplab entrance 7542 | -9/Recycling | Entered Scraplab 7606 | -9/Recycling | Discovered new exit (range 3) 7682 | -9/Recycling | Entered Scraptown 7682 | -9/Scraptown | System corruption cleaned by C-Scrubber 7858 | -9/Scraptown | Visited Cyclists 7948 | -9/Scraptown | Heard Great Nut preacher, LISTEN AND RECITE! 7980 | -9/Scraptown | Visited CPS Storage 8024 | -9/Scraptown | Visited IN-MT5's Study 8312 | -9/Scraptown | Visited TADAMA 9570 | -9/Scraptown | Visited Comm Corps 9652 | -9/Scraptown | Visited UFD Registry 9655 | -9/Scraptown | Registered with UFD as "Electroninja" 9724 | -9/Scraptown | Visited Assassins FH 9851 | -9/Scraptown | Scanned Subdweller tech in exchange for log data 9858 | -9/Scraptown | Learned Factory emergency access door positions 9860 | -9/Scraptown | Learned location of 1 exit from Upper Caves 9999 | -9/Scraptown | Discovered new exit (range 5) 10104 | -9/Scraptown | Guru changed UFD alias to "Armorback" 10238 | -9/Scraptown | Visited Fellowship of the Rings 10325 | -9/Scraptown | Visited Abandonware Association 10349 | -9/Scraptown | Learned abandonware demo "KABOOM.EXE" 10403 | -9/Scraptown | Visited Junk Repository 10484 | -9/Scraptown | Visited DA-N13 Charitable Foundation 10561 | -9/Scraptown | Delivered Scrap Shield to a Scientist 10860 | -9/Scraptown | Visited Junk Repository 10982 | -9/Scraptown | Visited Supply Room 11296 | -9/Scraptown | Discovered new exit (range 5) 11355 | -9/Scraptown | Visited Science Guys 11435 | -9/Scraptown | Visited Observation Area 11502 | -9/Scraptown | Visited Science Testing Area 11560 | -9/Scraptown | Visited Modified Component R&D 11763 | -9/Scraptown | Found Scrap Suit 11880 | -9/Scraptown | Found Scrap Suit 11914 | -9/Scraptown | Entered Factory 11914 | -6/Factory | Evolved 8 slots: Power x1, Propulsion x1, Utility x4, Weapon x2 12402 | -6/Factory | Build established: Scrapper 12467 | -6/Factory | Identified exit to Lower Caves 12706 | -6/Factory | Spotted B-75 Beast 13468 | -6/Factory | Lost 4 parts (1n2u1w) 13709 | -6/Factory | Discovered new exit (range 8) 13721 | -6/Factory | Entered another Factory area 13721 | -5/Factory | Evolved 2 slots: Utility x2 13873 | -5/Factory | Spotted B-75 Beast 14162 | -5/Factory | Discovered new exit (range 13) 14176 | -5/Factory | Discovered new exit (range 15) 14201 | -5/Factory | Entered Extension 14275 | -5/Extension | Rescued A7 14478 | -5/Extension | Rescued a captive Derelict 14508 | -5/Extension | Build established: Scavenger-Tank 14616 | -5/Extension | Rescued a captive Derelict 14617 | -5/Extension | Rescued a captive Derelict 14871 | -5/Extension | Rescued a captive Derelict 14987 | -5/Extension | Lost 3 allies 15153 | -5/Extension | Rescued a captive Derelict 15162 | -5/Extension | Rescued a captive Derelict 15230 | -5/Extension | Lost 3 allies 15394 | -5/Extension | Rescued a captive Derelict 15770 | -5/Extension | Build established: Commander-Tank 15781 | -5/Extension | Discovered new exit (range 10) 15783 | -5/Extension | Discovered new exit (range 6) 15823 | -5/Extension | Entered Cetus 15823 | -5/Cetus | Accompanied by 12 allies (A7) 15828 | -5/Cetus | Acquired a Cetus Manufacturing Module code from A7 15848 | -5/Cetus | Spotted Cetus Guard 15848 | -5/Cetus | Spotted Cetus Guard 15850 | -5/Cetus | Spotted Cetus Guard 15858 | -5/Cetus | Spotted Cetus Guard 15862 | -5/Cetus | Allies destroyed Cetus Guard 15867 | -5/Cetus | Allies destroyed Cetus Guard 15872 | -5/Cetus | Destroyed Cetus Guard 15879 | -5/Cetus | Allies destroyed Cetus Guard 15898 | -5/Cetus | Lost 7 allies 16074 | -5/Cetus | Started Cetus Manufacturing Module 16099 | -5/Cetus | Manufactured an Enhanced Grunt 16124 | -5/Cetus | Manufactured an Enhanced Grunt 16149 | -5/Cetus | Manufactured an Enhanced Grunt 16159 | -5/Cetus | Build established: Scavenger-Tank 16174 | -5/Cetus | Manufactured an Enhanced Grunt 16194 | -5/Cetus | Escorted A7 to Cetus Mainframe 16199 | -5/Cetus | Manufactured an Enhanced Grunt 16325 | -5/Cetus | Discovered new exit (range 15) 16374 | -5/Cetus | Spotted Cetus Guard 16377 | -5/Cetus | Spotted Cetus Guard 16377 | -5/Cetus | Spotted Cetus Guard 16381 | -5/Cetus | Allies destroyed Cetus Guard 16381 | -5/Cetus | Allies destroyed Cetus Guard 16381 | -5/Cetus | Spotted Cetus Guard 16389 | -5/Cetus | Destroyed Cetus Guard 16390 | -5/Cetus | Allies destroyed Cetus Guard 16405 | -5/Cetus | Found Prototype Device 16405 | -5/Cetus | Identified Exp. Thermal Shield 16410 | -5/Cetus | Discovered new exit (range 16) 16416 | -5/Cetus | Lost 4 allies 16416 | -5/Cetus | Met Revision 17 16500 | -5/Cetus | Entered Factory 16500 | -4/Factory | Accompanied by 6 allies (A7) 16500 | -4/Factory | Evolved 2 slots: Propulsion x1, Utility x1 16505 | -4/Factory | Received a hacking code to weaken MAIN.C 16511 | -4/Factory | Identified exit to Upper Caves 16773 | -4/Factory | Discovered new exit (range 12) 17238 | -4/Factory | Garrison activated, responded to threat 17291 | -4/Factory | Entered Upper Caves 17291 | -4/Upper Caves | Accompanied by 5 allies 17292 | -4/Upper Caves | Identified exit to Upper Caves 17293 | -4/Upper Caves | UFD Scientist delivered a prototype 17295 | -4/Upper Caves | Found Prototype Protection 17295 | -4/Upper Caves | Identified Enh. Scrap Shield 17342 | -4/Upper Caves | Attracted the attention of an 0b10 outpost 17368 | -4/Upper Caves | Attracted the attention of an 0b10 checkpoint 17376 | -4/Upper Caves | Lost 3 allies 17452 | -4/Upper Caves | Encountered a Warlord checkpoint 17605 | -4/Upper Caves | Build established: Scavenger-Skirmisher 17674 | -4/Upper Caves | Learned 4 Research zone layouts 17816 | -4/Upper Caves | Entered another Upper Caves area 17816 | -4/Upper Caves | Accompanied by 1 ally 17905 | -4/Upper Caves | Learned location of Armory (-3) 18152 | -4/Upper Caves | Found Exp. Thermal Shield 18188 | -4/Upper Caves | Learned Research terminal intel 18423 | -4/Upper Caves | Discovered new exit (range 6) 18431 | -4/Upper Caves | Learned 4 Research zone layouts 18439 | -4/Upper Caves | Build established: Scavenger-Tank 18446 | -4/Upper Caves | Entered Warlord 18510 | -4/Warlord | System corruption cleaned by Quarantine Array 18619 | -4/Warlord | Visited the Vortex Lab 18635 | -4/Warlord | Warlord's base attacked by MAIN.C 18784 | -4/Warlord | Rebuked by Warlord 18985 | -4/Warlord | Warlord forces counterattacked 19002 | -4/Warlord | Spotted Executioner 19028 | -4/Warlord | Lost 4 allies 19033 | -4/Warlord | Spotted Striker 19059 | -4/Warlord | Destroyed Striker 19083 | -4/Warlord | Lost 10 allies 19083 | -4/Warlord | Spotted Executioner 19118 | -4/Warlord | Spotted Executioner 19127 | -4/Warlord | Spotted Executioner 19141 | -4/Warlord | Discovered new exit (range 15) 19156 | -4/Warlord | Released all parts (6) 19159 | -4/Warlord | Core integrity fell below 50% 19163 | -4/Warlord | Core integrity fell below 20% 19163 | -4/Warlord | Entered Proximity Caves 19174 | -3/Proximity Caves | Lost 16 allies 19186 | -3/Proximity Caves | Lost 10 parts (2p2n6u) 19219 | -3/Proximity Caves | Destroyed by S-43 Plague with Heavy Machine Gun Last Messages --------------- 19156_ Released Hacking Suite. 19156_ Released Enh. Flexi-carbon Leg. 19156_ Released Adv. Variable Charge Gun. 19156_ Released Centrium Medium Armor Plating. 19157_ The unstable cave ceiling collapses. 19157_ Rnf. Fission Core crushed. 19158_ Slug penetrates G-67 Veteran. 19158_ Penetrated by Slug. 19158_ Knocked back. 19158_ D-63 Destroyer knocked back. 19158_ Slug penetrates Wall. 19162_ Penetrated by Slug. 19163_ Knocked back. LOCATION=UNKNOWN GOAL=ESCAPE 19168_ Searching scrap... 19168_ Found Mak. Light Armor Plating. 19168_ Found 50 Matter. 19170_ Acquired Mak. Light Armor Plating. 19172_ Acquired 20 matter. Map ----- +----------------------------------------------------+ | ?????????????????????????????????????????????????? | | ?????????????????????????????????????????????????? | | ?????????????????????????????????????????????????? | | ?????????????????????????????????????????????????? | | ?????????????????????????????????????????????????? | | ?????????????????????????????????????????????????? | | ?????????????????????????????????????????????????? | | ?????????????????????????????????????????????????? | | ?????????????????????????????????????????????????? | | ?????????????????????????????????????????????????? | | ??????????????????????? ???????????????????????? | | ??????????????????????" ??# ???????????????????? | | ??????????????????????" ## ????????????????? | | ??????????????????????" ??????????????? | | ?????????????????????"" ???????????????? | | ?????????????????????"" ????????????????? | | ????????????????? ?? ????????????????? | | ????????????????? "?"" ?????????????????? | | ???????????????? """ ??????????????????? | | ???????????????? """" #??????????????????? | | ?????????? """" """" ##?????????????????? | | ?????????? """" """" #?????????????????? | | ##???????? """" """ #?????????????????? | | #???????# #?????????????????? | | #??????? ##????????????????? | | #??????? @ ;#????????????????? | | #?????#??????# ##### # ss ###????????????????? | | #### #??????# ##????# # #??????????????????? | | #??????# ##???# #?s#??????????????????? | | #?????## #???# # ##########?????????? | | ############## ##### s# $ ??????? | | # s ??????? | | " # #######?????????????? | | " " """" #???????????????????? | | """" " " """" #???????????????????? | | " " """ """" #???????????????????? | | " "" # "" #???????????????????? | | " # "" #???????????????????? | | " """"" # """" #???????????????????? | | % """" # "" #???????????????????? | | " """ # #???????????????????? | | """" " ##### #???????????????????? | | " "" ##???? ???????????????????? | | " ##????? ???????????????????? | | " #?????? ##???????????????????? | | #??????#?????????????????????? | | ####################?????????????????????????????? | | ?????????????????????????????????????????????????? | | ?????????????????????????????????????????????????? | | ?????????????????????????????????????????????????? | +----------------------------------------------------+ Best States ------------- Heat Dissipation 67 Energy Generation 26 Energy Capacity 240 Matter Stores 300 Matter Capacity 300 Sight Range 16 Terrain Scan Range 20 Terrain Scan Density 10 Armor Coverage 1250 Resistance: KI 10 Resistance: TH 30 Weapon Shielding 66 Phase Shifting 5 Evasion (%) 65 Recoil Reduction 4 Kinecelleration 40 Offensive Hacking 22 Item Schematics ----------------- Adv. Weight Redist. System | -6/Factory | Scanalyzed Med. Treads | -6/Factory | Scanalyzed Robot Schematics ------------------ None Fabricated ------------ Nothing Alien Tech Used ----------------- None Achievements -------------- None Challenges ------------ None Game ------ Seed DeepCompositeLauncher Manual? 0 Play Time 02:35:25 Cumulative 65.3 hours Start 2025.03.13 @ 23:06:37 End 2025.03.19 @ 23:07:31 Sessions 13 Manual Loads 0 Difficulty Rogue Special Mode None Game No. 65 Rogue 65 Adventurer 0 Explorer 0 Win Type - Total 1 Types 1/0/0/0/0/0/0/0/0 Lore% 39 Gallery% 45 Achievement% 41 Wizard Run 0 Options --------- Layout 1 ASCII 0 Keyboard 1 Movement Numpad Keybinds 0 Fullscreen 1 Font 24/Smallcaps Map View 50x35 Zoom Use 0% Tactical HUD 1 Map Filters NONE Filters NONE Steam 1 RUN: 84540239-e391-47a4-87f1-9b16ee885498